bitfinex/quotes_ETHUSD_20250131
["timestamp","ask_amount","ask_price","bid_price","bid_amount"]
[1738305288429,3.07572,3251.3,3250.6,3.0763]
[1738305288625,1.178512,3251.5,3250.8,3.07609]
[1738305288626,0.793,3251.2,3250.8,3.07609]
[1738305291398,0.8068,3251.4,3251.0,3.07588]
[1738305291598,0.8068,3251.4,3250.8,3.07612]
[1738305291798,3.91331171,3251.4,3250.8,3.07612]
[1738305292237,3.91331171,3251.4,3250.9,0.0075]
[1738305293500,0.09385596,3251.3,3250.9,0.0075]
[1738305294531,0.03090171,3251.2,3250.9,0.0075]
[1738305294738,0.03090171,3251.2,3250.8,3.07612]
[1738305294901,0.09385596,3251.1,3250.8,3.07612]
[1738305295100,3.88241,3251.4,3250.8,3.07612]
[1738305295305,0.09385596,3251.3,3250.8,3.07612]
[1738305295738,3.16956596,3251.3,3250.8,3.07612]
[1738305297339,3.16956596,3251.3,3250.7,3.0]
[1738305297544,0.03090171,3251.2,3250.7,6.09119]
[1738305297840,0.09386499,3251.1,3250.7,6.09119]
[1738305298135,0.09386499,3251.0,3250.7,6.09119]
[1738305298551,3.10661171,3251.3,3250.7,6.09119]
[1738305299010,0.09386499,3251.2,3250.7,6.09119]
[1738305300256,0.09386499,3251.2,3251.0,3.07594]
[1738305300466,0.8068,3251.4,3251.0,3.07594]
[1738305300606,0.09386499,3251.1,3251.0,3.07594]
[1738305300807,0.8068,3251.4,3250.9,0.7744]
[1738305301115,4.27063,3251.4,3250.8,3.07609]
[1738305301522,0.09386499,3251.3,3250.8,3.07609]
[1738305304848,0.09386499,3251.3,3250.8,0.015]
[1738305305023,0.09386499,3251.3,3251.2,3.07578]
[1738305305225,0.7616,3251.6,3251.2,3.07578]
[1738305305543,0.7616,3251.6,3251.1,0.832]
[1738305305749,0.0938424,3251.5,3251.0,3.07588]
[1738305306412,0.0938424,3251.5,3251.1,3.07583]
[1738305307047,0.03090171,3251.4,3251.0,0.0075]
[1738305307253,0.7616,3251.6,3251.0,3.08347]
[1738305307435,0.093874,3251.3,3251.0,0.0075]
[1738305307758,3.10641171,3251.5,3251.0,0.0075]
[1738305307929,0.09386497,3251.2,3251.0,0.0075]
[1738305308130,3.10641171,3251.5,3251.0,0.0075]
[1738305308325,0.09386497,3251.1,3250.7,3.90503]
[1738305308531,3.07573,3251.3,3250.7,3.90503]
[1738305308731,0.09386497,3251.0,3250.7,3.07623]
[1738305308930,3.10663171,3251.3,3250.8,0.0075]
[1738305309151,0.09387855,3250.9,3250.8,0.0075]
[1738305309317,3.10663171,3251.3,3250.8,0.0075]
[1738305309514,0.09387855,3250.9,3250.8,0.0075]
[1738305309719,3.10663171,3251.3,3250.8,0.0075]
[1738305309954,0.09387855,3250.9,3250.8,0.0075]
[1738305310153,3.10663171,3251.3,3250.8,0.0075]
[1738305310363,0.09387855,3250.9,3250.8,0.0075]
[1738305310862,3.10663171,3251.3,3250.8,0.0075]
[1738305311028,0.09387855,3250.9,3250.8,0.0075]
[1738305311363,3.10663171,3251.3,3250.8,3.08366]
[1738305311559,0.09387855,3250.9,3250.8,3.08366]
[1738305311770,3.10663171,3251.3,3250.8,3.08366]
[1738305311926,0.09387855,3250.9,3250.8,3.08366]
[1738305312125,0.03090171,3251.3,3250.8,3.08366]
[1738305312350,0.09387855,3250.9,3250.7,3.0762]
[1738305312659,0.09387855,3250.8,3250.7,3.0762]
[1738305312965,0.09387855,3250.8,3250.7,3.0912]
[1738305313156,3.10662171,3251.3,3250.7,3.0837]
[1738305313325,0.09386951,3250.8,3250.7,3.0837]
[1738305313735,3.10662171,3251.3,3250.7,3.0837]
[1738305314139,0.09386951,3251.2,3250.7,3.0837]
[1738305317370,0.09386951,3251.2,3250.7,0.0075]
[1738305317574,3.16971951,3251.2,3250.7,0.0075]
[1738305318666,0.03090171,3251.1,3250.5,3.07642]
[1738305318876,0.03090171,3251.1,3250.6,3.07634]
[1738305319250,0.09386951,3251.0,3250.6,3.07634]
[1738305320283,3.10675171,3251.2,3250.6,3.07634]
[1738305320642,0.09386951,3251.1,3250.6,3.07634]
[1738305320840,0.80170171,3251.0,3250.2,0.7669]
[1738305321037,3.07653,3250.5,3249.8,3.38475]
[1738305321235,0.03090171,3250.4,3249.8,3.07705]
[1738305321663,0.09373405,3250.3,3249.8,3.07705]
[1738305321839,3.17039405,3250.3,3249.8,3.07705]
[1738305322036,0.7708,3250.2,3249.8,3.07705]
[1738305322653,0.09373405,3250.1,3249.7,3.0]
[1738305322855,3.07683,3250.1,3249.7,3.0]
[1738305323176,0.09373405,3250.0,3249.7,3.0]
[1738305323585,0.09373405,3249.9,3249.7,3.0]
[1738305323951,0.7708,3250.2,3249.7,3.0]
[1738305324453,3.84756,3250.2,3249.7,3.0]
[1738305325811,3.87846171,3250.2,3249.7,3.0]
[1738305326189,3.07683,3250.1,3249.6,3.07727]
[1738305326376,0.03090171,3250.0,3249.6,3.07727]
[1738305326715,3.10783171,3250.0,3249.5,5.4435]
[1738305327206,0.03090171,3250.0,3249.5,5.4435]
[1738305327413,3.84757,3250.2,3249.6,3.07728]
[1738305327877,0.03090171,3250.1,3249.6,3.07728]
[1738305328073,3.84757,3250.2,3249.6,3.07728]
[1738305328794,0.7708,3250.2,3250.0,3.0769]
[1738305329180,0.7708,3250.2,3249.8,3.07704]
[1738305329993,0.03090171,3250.1,3249.6,3.07728]
[1738305330290,0.7708,3250.2,3249.7,3.07719]
[1738305330995,0.03090171,3250.1,3249.7,3.07719]
[1738305331556,3.10776171,3250.1,3249.6,0.0075]
[1738305331894,0.8195,3250.0,3249.5,2.436]
[1738305332051,0.03090171,3249.9,3249.5,2.436]
[1738305332257,0.8195,3249.7,3249.5,2.436]
[1738305332495,0.03090171,3249.6,3249.5,2.436]
[1738305336004,0.74677955,3249.7,3249.5,2.436]
[1738305336240,3.0773,3249.6,3249.5,2.436]
[1738305337167,3.86022216,3249.6,3249.5,2.436]
[1738305337808,0.78292216,3249.6,3249.1,3.07774]
[1738305337975,0.0927992,3249.6,3249.1,3.07774]
[1738305338471,3.1700992,3249.6,3249.0,0.7604]
[1738305338967,0.7881,3249.5,3249.0,0.7604]
[1738305339371,0.09244226,3249.4,3249.0,0.7604]
[1738305339774,0.09244226,3249.4,3248.9,3.07791]
[1738305341388,0.09244226,3249.4,3249.0,35.0]
[1738305341773,3.8655,3249.5,3249.0,35.0]
[1738305342186,3.8655,3249.5,3248.9,3.07791]
[1738305342589,0.09236998,3249.4,3248.9,3.07791]
[1738305342773,0.09236998,3249.4,3248.9,38.07791]
[1738305343171,0.7881,3249.5,3249.0,0.0075]
[1738305343371,3.07654,3250.5,3249.5,0.0075]
[1738305343577,0.8169,3250.1,3249.6,3.85368]
[1738305343797,0.8169,3250.1,3249.6,38.85368]
[1738305344102,0.8169,3250.1,3249.6,3.85368]
[1738305344622,0.08898515,3250.0,3249.6,3.85368]
[1738305345324,0.08898515,3250.0,3249.9,0.0075]
[1738305345535,3.82858,3250.4,3249.9,3.08451]
[1738305346012,0.08919802,3250.3,3249.9,3.08451]
[1738305346351,0.08919802,3250.3,3249.7,0.015]
[1738305346550,0.08919802,3250.3,3249.9,0.0075]
[1738305346846,0.08919802,3250.3,3250.2,6.09173]
[1738305347004,0.7861,3251.2,3250.6,3.015]
[1738305347348,0.08621511,3251.1,3250.8,3.0761]
[1738305347564,0.7861,3251.2,3250.8,0.0075]
[1738305347764,0.8132,3251.6,3251.3,3.07568]
[1738305347926,0.8132,3251.6,3251.1,3.07588]
[1738305348433,0.8132,3251.6,3251.2,0.0075]
[1738305348634,0.7525,3252.0,3251.4,3.0755]
[1738305349134,3.82755,3252.0,3251.4,3.0755]
[1738305350348,3.0752,3251.9,3251.4,0.0075]
[1738305350751,3.82755,3252.0,3251.1,3.0]
[1738305350929,3.07525,3251.8,3251.1,6.07585]
[1738305351543,0.382755,3251.9,3251.2,0.0075]
[1738305351753,3.82755,3252.0,3251.3,3.07562]
[1738305352629,3.07518,3251.9,3251.3,3.07562]
[1738305353325,3.16226535,3251.8,3251.2,0.0075]
[1738305353530,3.16226535,3251.8,3251.1,3.07586]
[1738305355068,3.07539,3251.7,3251.1,3.07586]
[1738305355269,0.90915981,3251.6,3251.1,3.07586]
[1738305355839,0.90915981,3251.6,3251.2,3.07577]
[1738305356179,0.8217,3251.6,3251.2,3.07577]
[1738305356470,0.08742814,3251.5,3251.2,3.07577]
[1738305357482,0.08742814,3251.5,3251.1,3.07587]
[1738305358154,0.08742814,3251.5,3251.3,3.07567]
[1738305358965,0.08742814,3251.5,3251.4,3.08309]
[1738305359277,0.08742814,3251.5,3251.3,3.690824]
[1738305359465,3.87913,3251.9,3251.3,3.690824]
[1738305359652,0.08735574,3251.8,3251.3,3.07567]
[1738305359853,3.87913,3251.9,3251.3,3.07567]
[1738305360478,0.08735574,3251.8,3251.3,3.07567]
[1738305360677,3.87913,3251.9,3251.3,3.07567]
[1738305361083,0.08735574,3251.8,3251.3,3.07567]
[1738305361469,3.87913,3251.9,3251.3,3.07567]
[1738305361668,0.08738292,3251.8,3251.3,3.07567]
[1738305361871,0.804,3251.9,3251.3,3.07567]
[1738305362052,0.804,3251.9,3251.4,3.383087]
[1738305362256,0.08738292,3251.8,3251.5,3.07546]
[1738305362580,0.804,3251.9,3251.5,3.07546]
[1738305362957,0.08738292,3251.8,3251.5,3.07546]
[1738305365577,0.08738292,3251.8,3251.4,0.307567]
[1738305365784,0.08738292,3251.8,3251.3,3.07567]
[1738305367173,3.87915,3251.9,3251.3,3.07567]
[1738305368077,0.08735578,3251.8,3251.4,3.07559]
[1738305368754,0.08735578,3251.8,3251.2,0.015]
[1738305368963,3.16258578,3251.8,3251.2,3.0907]
[1738305369162,0.08735578,3251.8,3251.3,3.692324]
[1738305370392,0.08735578,3251.8,3251.3,6.767934]
[1738305370707,0.08735578,3251.8,3251.5,3.88801]
[1738305371349,3.07493,3252.1,3251.5,3.88801]
[1738305371889,0.7723,3252.2,3251.6,3.07539]
[1738305372195,0.0873467,3252.1,3251.6,3.77173]
[1738305372486,3.84717,3252.2,3251.6,3.77173]
[1738305372647,0.0873467,3252.1,3251.6,0.69634]
[1738305372847,3.84722,3252.2,3251.6,0.69634]
[1738305373047,0.08741006,3252.1,3251.6,0.69634]
[1738305373252,3.84722,3252.2,3251.7,0.458435]
[1738305373490,0.08741006,3252.1,3251.7,0.458435]
[1738305375271,3.07519,3251.9,3251.2,0.7623]
[1738305375476,0.8092,3251.6,3251.0,6.07589]
[1738305375656,0.08761817,3251.5,3251.1,0.015]
[1738305375856,3.88461,3251.6,3251.2,0.609089]
[1738305376391,3.88461,3251.6,3251.3,0.28630175]
[1738305376884,0.08761817,3251.5,3251.3,0.28630175]
[1738305377981,0.08761817,3251.5,3251.4,0.28630175]
[1738305378388,0.08761817,3251.5,3251.4,3.28630175]
[1738305378587,0.08761817,3251.5,3251.4,3.98340982]
[1738305378886,0.08761365,3251.5,3251.4,3.98340982]
[1738305379076,3.89886,3251.9,3251.4,3.98340982]
[1738305379281,0.08761365,3251.8,3251.4,3.98340982]
[1738305379458,3.16285365,3251.8,3251.4,3.98340982]
[1738305380288,0.08761365,3251.8,3251.4,3.98340982]
[1738305380468,3.07524,3251.8,3251.4,0.98340982]
[1738305380656,3.16296365,3251.7,3251.4,0.28630175]
[1738305381578,3.16296365,3251.7,3251.5,0.28630175]
[1738305381781,0.08761365,3251.7,3251.5,0.28630175]
[1738305382089,3.89886,3251.9,3251.5,0.28630175]
[1738305382259,6.97407,3251.9,3251.5,0.28630175]
[1738305382460,0.08763626,3251.8,3251.5,0.28630175]
[1738305383497,0.08763626,3251.8,3251.6,0.28630175]
[1738305383796,3.16287626,3251.8,3251.6,0.28630175]
[1738305384359,0.08763626,3251.8,3251.6,0.28630175]
[1738305384559,3.16285626,3251.8,3251.6,0.28630175]
[1738305385280,3.16285626,3251.8,3251.2,3.07576]
[1738305385496,3.07522,3251.8,3251.2,3.07576]
[1738305385918,3.07481,3252.3,3251.7,3.07525]
[1738305386119,0.7962,3252.6,3251.7,0.8337]
[1738305386413,0.7962,3252.6,3252.2,3.07482]
[1738305386783,0.08132944,3252.5,3252.2,3.07482]
[1738305386981,0.7962,3252.6,3252.2,3.07482]
[1738305387382,0.7962,3252.6,3251.9,3.07507]
[1738305387575,0.08132944,3252.5,3252.1,3.07493]
[1738305388215,3.07438,3252.7,3252.1,3.07493]
[1738305388395,1.40600027,3252.8,3252.3,3.07473]
[1738305388786,0.08147447,3252.7,3252.3,3.07473]
[1738305388987,1.40600027,3252.8,3252.3,3.07473]
[1738305389184,3.07456,3252.5,3251.9,1.145977]
[1738305389390,3.0746,3252.5,3251.9,1.145977]
[1738305389619,3.0746,3252.5,3251.7,0.7617]
[1738305389620,0.7998,3252.4,3251.7,0.7617]
[1738305389925,3.0748,3252.3,3251.7,3.837]
[1738305390290,0.08168754,3252.2,3251.7,3.837]
[1738305390518,3.0748,3252.3,3251.7,3.837]
[1738305390782,3.0748,3252.3,3251.7,4.828247]
[1738305390983,0.08168754,3252.2,3251.7,4.828247]
[1738305391415,3.0748,3252.3,3251.7,4.828247]
[1738305391817,0.08168754,3252.2,3251.7,4.828247]
[1738305392201,3.0748,3252.3,3251.7,4.828247]
[1738305392530,0.08168754,3252.2,3251.7,4.828247]
[1738305392995,6.14963,3252.3,3251.7,4.828247]
[1738305393194,3.0748,3252.3,3251.7,4.828247]
[1738305393409,0.08168754,3252.2,3251.7,4.828247]
[1738305393603,3.0748,3252.3,3251.7,4.828247]
[1738305393809,0.08168754,3252.1,3251.7,4.828247]
[1738305394035,3.0748,3252.3,3251.7,4.828247]
[1738305394333,0.7998,3252.4,3251.8,0.7978247]
[1738305394625,0.08168754,3252.2,3252.1,6.14976]
[1738305394837,3.8703,3252.7,3252.1,3.07485]
[1738305395218,3.8703,3252.7,3252.2,3.07484]
[1738305395434,6.94475,3252.7,3252.0,3.07494]
[1738305395593,3.07461,3252.5,3251.9,3.07508]
[1738305396213,0.08168754,3252.4,3251.9,3.84607147]
[1738305396531,3.07461,3252.5,3251.9,3.84607147]
[1738305396893,3.07466,3252.4,3251.9,3.84607147]
[1738305397099,0.08168754,3252.3,3251.9,3.07508]
[1738305397307,0.08168754,3252.3,3251.8,0.7978247]
[1738305397601,0.7756,3252.2,3251.8,0.015]
[1738305398338,0.08168754,3252.1,3251.8,0.015]
[1738305398702,0.08168754,3252.1,3251.7,3.83701]
[1738305399739,0.08168754,3252.1,3251.8,0.015]
[1738305399938,0.08168754,3252.1,3251.9,3.07511]
[1738305400103,0.08168754,3252.1,3252.0,3.384041]
[1738305400301,3.90648,3252.5,3252.0,3.384041]
[1738305400531,0.081683,3252.4,3252.0,3.384041]
[1738305402800,0.081683,3252.4,3252.1,3.07492]
[1738305403228,0.8319,3252.7,3252.1,3.07492]
[1738305403430,0.08171926,3252.3,3252.1,3.07492]
[1738305403631,3.90627,3252.7,3252.2,0.3383931]
[1738305403870,0.08176005,3252.2,3252.1,3.91242]
[1738305404037,0.8319,3252.7,3252.2,3.07482]
[1738305404239,3.07408,3253.0,3252.3,0.015]
[1738305404539,0.8319,3252.9,3252.4,3.07463]
[1738305405424,3.90611,3252.9,3252.4,3.07463]
[1738305406150,3.0743,3252.8,3252.3,0.015]
[1738305410023,0.005,3253.1,3252.6,3.83195]
[1738305410936,3.07906,3253.1,3252.6,0.7575]
[1738305411335,3.07411,3253.0,3252.6,0.7575]
[1738305411564,3.07411,3253.0,3252.5,0.015]
[1738305412033,0.07925926,3252.9,3252.5,0.015]
[1738305413188,3.15346926,3252.9,3252.5,0.015]
[1738305413480,3.07421,3252.9,3252.5,0.015]
[1738305413635,0.07925926,3252.8,3252.5,0.015]
[1738305414048,3.07421,3252.9,3252.5,0.015]
[1738305414445,3.15356926,3252.8,3252.2,3.8353]
[1738305414774,0.07925926,3252.7,3252.3,0.015]
[1738305415175,3.07431,3252.8,3252.3,0.015]
[1738305415551,3.07438,3252.7,3252.3,0.015]
[1738305416352,3.87098,3252.7,3252.3,0.015]
[1738305416992,3.07469,3252.4,3251.9,0.8172]
[1738305417140,3.0749,3252.2,3251.7,0.8218]
[1738305417345,3.0749,3252.2,3251.8,0.015]
[1738305417646,3.07469,3252.4,3251.8,0.015]
[1738305417950,3.07469,3252.4,3251.8,3.09021]
[1738305418164,3.07469,3252.4,3252.0,0.0075]
[1738305419873,0.7844,3253.3,3252.1,0.8129]
[1738305420176,3.07397,3253.2,3252.6,0.8129]
[1738305420381,3.07411,3253.0,3252.3,3.07465]
[1738305420540,3.14764131,3253.0,3252.3,3.07465]
[1738305420870,3.14764131,3253.0,3252.4,0.388755]
[1738305421071,0.7844,3252.8,3252.3,3.07465]
[1738305421476,0.0736448,3252.7,3252.3,3.07465]
[1738305421852,0.7844,3252.8,3252.3,3.07465]
[1738305422048,0.0736448,3252.6,3252.3,3.07465]
[1738305422254,0.7844,3252.8,3252.3,3.07465]
[1738305422455,0.0736448,3252.5,3252.3,3.825896]
[1738305422667,0.7844,3252.8,3252.3,3.825896]
[1738305422878,0.7844,3252.8,3252.3,6.840896]
[1738305423182,0.0736448,3252.7,3251.9,3.466281]
[1738305423377,3.07447,3252.6,3252.0,0.7675]
[1738305423547,3.07447,3252.6,3252.0,6.84252]
[1738305423750,0.07361303,3252.5,3252.0,6.84252]
[1738305423947,0.07361303,3252.5,3252.0,7.8734001]
[1738305424346,3.07447,3252.6,3252.0,7.8734001]
[1738305425784,0.07361303,3252.5,3252.0,7.8734001]
[1738305426780,0.07361303,3252.5,3252.0,4.7983801]
[1738305427089,0.07361303,3252.5,3252.1,3.07491]
[1738305429391,0.07361303,3252.5,3252.0,0.7675]
[1738305429557,3.90741,3252.4,3251.7,3.86217]
[1738305429756,6.98215,3252.4,3251.7,3.86217]
[1738305429982,0.07363117,3252.3,3251.8,3.09021]
[1738305430251,0.07363117,3252.3,3251.8,0.015]
[1738305430455,3.90741,3252.4,3251.9,3.07511]
[1738305431078,0.07363117,3252.3,3251.9,3.07511]
[1738305431477,0.07363117,3252.3,3251.7,3.07527]
[1738305431686,3.14842117,3252.3,3251.7,3.07527]
[1738305431857,3.07479,3252.3,3251.7,3.07527]
[1738305433900,0.8327,3252.4,3251.6,3.0]
[1738305434077,0.7971,3252.1,3251.6,3.07534]
[1738305435291,0.07363117,3252.0,3251.6,3.07534]
[1738305435489,0.07363117,3252.0,3251.6,3.767972]
[1738305435792,0.7971,3252.1,3251.6,3.767972]
[1738305436660,3.87204,3252.1,3251.7,0.015]
[1738305437011,3.87204,3252.1,3251.3,3.07566]
[1738305437012,3.07512,3251.9,3251.3,3.07566]
[1738305437499,0.07343139,3251.8,3251.4,0.015]
[1738305437995,3.07512,3251.9,3251.4,0.015]
[1738305440672,3.07512,3251.9,3251.2,3.0]
[1738305440673,3.07536,3251.7,3251.2,3.0]
[1738305441197,0.7876,3251.8,3251.2,3.0]
[1738305441373,0.07343139,3251.6,3251.3,3.07563]
[1738305441694,0.7876,3251.8,3251.3,3.07563]
[1738305442057,0.07308628,3251.7,3251.3,3.07563]
[1738305442584,0.07308628,3251.6,3251.3,3.07563]
[1738305442988,0.7876,3251.8,3251.3,3.07563]
[1738305443163,0.07308628,3251.5,3251.2,0.015]
[1738305443364,3.86288,3251.8,3251.2,3.09071]
[1738305443563,0.07308628,3251.4,3251.2,3.09071]
[1738305443763,3.86288,3251.8,3251.2,3.09071]
[1738305443964,0.07308628,3251.3,3251.2,3.09071]
[1738305444160,3.86288,3251.8,3251.2,3.09071]
[1738305444355,0.07308628,3251.3,3251.2,3.09071]
[1738305444572,3.86288,3251.8,3251.2,3.09071]
[1738305444777,0.07308628,3251.3,3251.2,3.09071]
[1738305444975,3.86288,3251.8,3251.2,3.09071]
[1738305445184,0.07308628,3251.3,3251.2,3.08321]
[1738305445376,3.86288,3251.8,3251.2,3.07571]
[1738305445594,3.07531,3251.7,3251.2,3.07571]
[1738305445801,3.14839628,3251.7,3251.2,3.07571]
[1738305446103,0.07308628,3251.7,3251.3,3.07568]
[1738305446308,1.54342542,3251.8,3251.3,3.07568]
[1738305447308,4.61864542,3251.8,3251.3,3.07568]
[1738305448116,4.61864542,3251.8,3250.8,5.39720963]
[1738305448117,0.8168,3251.4,3250.8,8.47334963]
[1738305448400,0.8168,3251.4,3250.7,0.015]
[1738305448610,0.8168,3251.4,3250.6,3.07632]
[1738305448611,3.07579,3251.2,3250.6,3.07632]
[1738305448821,3.89268,3251.1,3250.4,3.0765]
[1738305449027,3.07597,3251.0,3250.4,3.0765]
[1738305449303,3.14871108,3251.0,3250.4,3.0765]
[1738305449480,0.07274108,3251.0,3250.5,3.07638]
[1738305449685,0.8168,3251.1,3250.4,6.20648842]
[1738305449889,0.8168,3251.1,3250.6,3.07633]
[1738305452492,3.8927,3251.1,3250.4,3.0765]
[1738305452777,3.8927,3251.1,3250.5,3.07643]
[1738305453173,0.07243208,3251.0,3250.7,3.07625]
[1738305453616,0.8168,3251.1,3250.7,3.07625]
[1738305454825,0.8168,3251.1,3250.5,3.07643]
[1738305455193,3.89269,3251.1,3250.5,3.07643]
[1738305455415,0.07243665,3251.0,3250.5,3.07643]
[1738305455908,3.89269,3251.1,3250.5,3.07643]
[1738305456712,0.8168,3251.1,3250.5,3.07643]
[1738305456875,0.8168,3251.1,3250.7,3.07625]
[1738305457081,0.8168,3251.1,3250.5,3.07643]
[1738305457082,0.8059,3251.5,3250.8,0.015]
[1738305457315,0.8059,3251.5,3251.2,3.07576]
[1738305457807,0.07215039,3251.4,3251.2,3.07576]
[1738305459106,0.8059,3251.4,3250.8,0.015]
[1738305459295,0.8059,3251.4,3250.8,3.0911]
[1738305459493,0.8059,3251.4,3251.1,0.015]
[1738305459696,0.0723776,3251.3,3251.1,3.0908]
[1738305460417,0.8059,3251.4,3251.1,3.0908]
[1738305460915,0.07241395,3251.3,3251.1,3.0908]
[1738305461714,0.07241395,3251.3,3251.1,6.16661]
[1738305461916,0.7896,3251.6,3251.1,3.707461]
[1738305462215,0.07240942,3251.5,3251.1,3.0908]
[1738305464296,0.07240942,3251.5,3251.1,0.015]
[1738305466395,0.07240942,3251.5,3251.1,3.09087]
[1738305468508,0.07240942,3251.5,3251.1,3.09081]
[1738305472595,3.14790942,3251.5,3250.9,3.07605]
[1738305472800,3.84920436,3251.5,3250.9,3.07605]
[1738305473526,0.77370436,3251.5,3250.9,3.07605]
[1738305473708,3.07562,3251.4,3250.9,3.07605]
[1738305474121,0.07245485,3251.3,3250.9,3.07605]
[1738305475131,0.07245485,3251.3,3250.8,0.7626]
[1738305475430,0.07245485,3251.3,3250.4,3.0]
[1738305475431,3.86134,3251.2,3250.4,3.0]
[1738305475630,3.076,3251.0,3250.4,6.07649]
[1738305475820,3.076,3251.0,3250.5,0.0075]
[1738305476025,3.076,3251.0,3250.5,3.08394]
[1738305476211,0.07234125,3250.9,3250.5,3.08394]
[1738305477842,0.07234125,3250.9,3250.5,0.0075]
[1738305479005,3.14843125,3250.9,3250.5,0.0075]
[1738305479136,0.7799,3250.8,3250.5,0.0075]
[1738305479960,0.07234125,3250.7,3250.5,0.0075]
[1738305480166,3.85613,3250.8,3250.5,0.0075]
[1738305480318,0.07234125,3250.7,3250.3,3.565]
[1738305480518,3.07638,3250.6,3249.9,3.85764]
[1738305480749,3.07638,3250.6,3250.0,3.565]
[1738305480750,0.07215493,3250.5,3250.0,3.565]
[1738305480922,0.07215493,3250.5,3250.2,3.015]
[1738305481122,3.07633,3250.7,3250.2,3.015]
[1738305481323,0.07203679,3250.6,3250.2,3.015]
[1738305481517,3.07633,3250.7,3250.2,3.015]
[1738305481717,0.07203679,3250.6,3250.2,3.015]
[1738305481936,3.07633,3250.7,3250.2,3.015]
[1738305482325,0.07203679,3250.6,3250.2,3.015]
[1738305482527,3.07633,3250.7,3250.2,3.015]
[1738305482743,0.07203679,3250.6,3250.2,3.015]
[1738305484267,0.07203679,3250.6,3250.2,6.09171]
[1738305484465,0.07203679,3250.6,3250.5,0.0075]
[1738305484652,0.8308,3251.2,3250.7,3.0762]
[1738305485228,0.07192316,3251.1,3250.7,3.0762]
[1738305485664,0.07192316,3251.1,3250.9,3.84876]
[1738305485868,0.07192316,3251.1,3251.0,3.09097]
[1738305486168,0.7772,3251.5,3251.0,3.788019]
[1738305486328,0.07192316,3251.4,3251.0,3.788019]
[1738305486534,0.07192316,3251.4,3251.0,0.712049]
[1738305486734,3.85272,3251.5,3251.0,0.015]
[1738305486955,0.07192316,3251.4,3251.0,0.015]
[1738305487353,3.07569,3251.3,3250.7,3.84892]
[1738305487686,0.7772,3251.5,3251.1,3.07586]
[1738305488186,3.85254,3251.7,3251.1,3.07586]
[1738305488536,0.0721413,3251.6,3251.2,3.07577]
[1738305488739,0.0721413,3251.6,3251.1,3.07586]
[1738305489137,0.0721413,3251.6,3251.4,3.07558]
[1738305489330,0.0721413,3251.6,3251.2,0.7877]
[1738305489593,0.7772,3251.5,3251.1,3.07584]
[1738305490091,0.07215037,3251.4,3251.1,3.07584]
[1738305491578,0.07215037,3251.4,3251.3,0.7877]
[1738305491808,0.7772,3251.9,3251.7,0.0075]
[1738305491988,0.61041082,3252.0,3251.7,0.015]
[1738305492164,0.61041082,3252.0,3251.7,3.09031]
[1738305492483,0.61041082,3252.0,3251.3,3.07568]
[1738305492484,3.07518,3251.9,3251.3,3.07568]
[1738305492648,3.82895508,3251.9,3251.3,3.07568]
[1738305493402,3.82895508,3251.9,3251.4,0.0075]
[1738305493603,0.7772,3252.1,3251.6,4.41304]
[1738305494082,3.8522,3252.1,3251.6,0.015]
[1738305494284,3.07506,3252.0,3251.6,0.015]
[1738305498594,0.7772,3252.1,3251.6,0.015]
[1738305498797,0.7772,3252.1,3251.6,0.565]
[1738305499869,0.15618409,3253.0,3251.6,0.565]
[1738305499870,3.07449,3252.6,3252.0,0.015]
[1738305500074,3.07458,3252.5,3252.0,0.015]
[1738305500914,3.07465,3252.4,3252.0,0.015]
[1738305501406,3.07465,3252.4,3251.9,0.015]
[1738305501621,3.07479,3252.3,3251.9,0.015]
[1738305503033,0.8143,3252.2,3251.9,0.015]
[1738305503326,0.88467501,3252.2,3251.9,0.015]
[1738305504300,3.07468,3252.4,3251.9,0.8328]
[1738305504631,0.07037501,3252.3,3251.9,0.8328]
[1738305505124,3.14511501,3252.3,3251.9,0.015]
[1738305505931,0.07037501,3252.3,3251.9,0.015]
[1738305506091,0.07037501,3252.3,3252.0,0.9495]
[1738305506411,0.07037501,3252.3,3251.9,0.015]
[1738305507017,3.07501,3252.1,3251.8,8.93]
[1738305507315,0.7773,3252.2,3251.8,8.93]
[1738305507316,3.85221,3252.2,3251.8,8.93]
[1738305507501,0.07037501,3252.0,3251.8,8.93]
[1738305507702,3.07493,3252.1,3251.8,8.93]
[1738305507908,0.07037501,3251.9,3251.8,8.93]
[1738305508091,3.07493,3252.1,3251.7,0.015]
[1738305508286,0.07037501,3251.9,3251.7,0.015]
[1738305508487,3.85221,3252.2,3251.7,0.015]
[1738305508697,0.07037501,3251.8,3251.7,0.015]
[1738305508909,3.85221,3252.2,3251.7,0.015]
[1738305509080,0.07037501,3251.8,3251.7,0.015]
[1738305509280,3.07503,3252.0,3251.6,3.31793413]
[1738305509586,3.85221,3252.2,3251.6,3.31793413]
[1738305509802,0.07042951,3252.1,3251.6,6.39332413]
[1738305510008,0.07042951,3252.1,3251.6,8.1322426]
[1738305510205,3.14535951,3252.1,3251.6,8.1322426]
[1738305510913,0.07042951,3252.1,3251.6,8.1322426]
[1738305511119,0.07042951,3252.1,3251.7,3.84098]
[1738305511612,3.07465,3252.4,3252.0,0.015]
[1738305511992,0.07042951,3252.3,3252.0,0.015]
[1738305512196,3.07452,3252.6,3252.0,0.015]
[1738305512395,0.07042951,3252.5,3252.0,0.015]
[1738305512714,0.07042951,3252.5,3252.2,3.0748]
[1738305513121,3.87491,3252.7,3252.2,3.0748]
[1738305513481,3.87491,3252.7,3252.1,0.7657]
[1738305513687,3.87491,3252.7,3252.1,3.84062]
[1738305513931,0.07042951,3252.6,3252.1,3.84062]
[1738305514309,3.87491,3252.7,3252.1,3.84062]
[1738305514514,3.07448,3252.6,3252.1,0.7657]
[1738305514718,3.14507301,3252.6,3252.1,0.7657]